[Event "Early-Titled-Tuesday-Blitz-March-05-2024"]
[Site "Chess.com"]
[Date "2024.03.05"]
[Round "2"]
[White "Veganator13"]
[Black "DrCeltic"]
[Result "1-0"]
[WhiteElo "2317"]
[BlackElo "2493"]
[TimeControl "180+1"]
[EndTime "8:16:42 PST"]
[Termination "Veganator13 won by resignation"]

1. c4 {[%clk 0:02:59.1]} 1... c6 {[%clk 0:02:58.9]} 2. g3 {[%clk 0:02:58.7]}
2... d5 {[%clk 0:02:59.1]} 3. Nf3 {[%clk 0:02:59.3]} 3... Nf6 {[%clk 0:02:58.9]}
4. Bg2 {[%clk 0:02:59.9]} 4... Bf5 {[%clk 0:02:59.3]} 5. Qb3 {[%clk 0:02:55.4]}
5... Qb6 {[%clk 0:02:57.2]} 6. d3 {[%clk 0:02:55]} 6... e6 {[%clk 0:02:57.1]} 7.
Be3 {[%clk 0:02:53.4]} 7... Qc7 {[%clk 0:02:51.7]} 8. cxd5 {[%clk 0:02:41]} 8...
exd5 {[%clk 0:02:49]} 9. Nc3 {[%clk 0:02:38.3]} 9... Nbd7 {[%clk 0:02:47.2]} 10.
Rc1 {[%clk 0:02:37.2]} 10... Nb6 {[%clk 0:02:20.9]} 11. Bf4 {[%clk 0:02:29.9]}
11... Bd6 {[%clk 0:02:16.5]} 12. Nb5 {[%clk 0:02:29.1]} 12... Bxf4 {[%clk
0:02:11.5]} 13. Nxc7+ {[%clk 0:02:27.2]} 13... Bxc7 {[%clk 0:02:12.4]} 14. Nd4
{[%clk 0:02:22.6]} 14... Bg6 {[%clk 0:02:07.7]} 15. Qa3 {[%clk 0:02:19.2]} 15...
Nc8 {[%clk 0:02:03.5]} 16. O-O {[%clk 0:02:05.2]} 16... Bd6 {[%clk 0:01:57.1]}
17. Qb3 {[%clk 0:02:04.5]} 17... Rb8 {[%clk 0:01:57.7]} 18. e4 {[%clk
0:02:03.4]} 18... O-O {[%clk 0:01:55.4]} 19. Nf5 {[%clk 0:01:57.2]} 19... Bxf5
{[%clk 0:01:52.8]} 20. exf5 {[%clk 0:01:55.2]} 20... Ne7 {[%clk 0:01:52.6]} 21.
Bh3 {[%clk 0:01:52.4]} 21... c5 {[%clk 0:01:45.9]} 22. g4 {[%clk 0:01:50.7]}
22... h6 {[%clk 0:01:45.3]} 23. f4 {[%clk 0:01:46.7]} 23... Nc6 {[%clk
0:01:25.5]} 24. g5 {[%clk 0:01:41.3]} 24... Nd4 {[%clk 0:01:25.8]} 25. Qd1
{[%clk 0:01:40.9]} 25... hxg5 {[%clk 0:01:20.3]} 26. fxg5 {[%clk 0:01:41.8]}
26... Nh7 {[%clk 0:01:21.1]} 27. Qh5 {[%clk 0:01:38]} 27... Rfe8 {[%clk
0:01:17.2]} 28. g6 {[%clk 0:01:26]} 28... fxg6 {[%clk 0:01:09.2]} 29. fxg6
{[%clk 0:01:25.4]} 29... Nf8 {[%clk 0:01:00.7]} 30. Rxf8+ {[%clk 0:01:05.1]}
30... Kxf8 {[%clk 0:01:01.6]} 31. Rf1+ {[%clk 0:01:04.9]} 31... Ke7 {[%clk
0:01:00.8]} 32. Rf7+ {[%clk 0:01:04.8]} 32... Kd8 {[%clk 0:00:59.4]} 33. Rd7+
{[%clk 0:01:04.7]} 1-0

[Event "Early-Titled-Tuesday-Blitz-March-05-2024"]
[Site "Chess.com"]
[Date "2024.03.05"]
[Round "2"]
[White "chupitroko32"]
[Black "Aslanov_Umid"]
[Result "1/2-1/2"]
[WhiteElo "2392"]
[BlackElo "2621"]
[TimeControl "180+1"]
[EndTime "8:16:46 PST"]
[Termination "Game drawn by repetition"]

1. e4 {[%clk 0:02:56.4]} 1... c5 {[%clk 0:03:00]} 2. Nc3 {[%clk 0:02:55.6]} 2...
d6 {[%clk 0:03:00]} 3. g3 {[%clk 0:02:55.9]} 3... g6 {[%clk 0:02:59.7]} 4. Bg2
{[%clk 0:02:56.3]} 4... Bg7 {[%clk 0:03:00.4]} 5. d3 {[%clk 0:02:56.8]} 5... Nc6
{[%clk 0:02:58.9]} 6. Be3 {[%clk 0:02:56.9]} 6... e6 {[%clk 0:02:59.6]} 7. Qd2
{[%clk 0:02:57.3]} 7... Nge7 {[%clk 0:02:54.2]} 8. Bh6 {[%clk 0:02:57.1]} 8...
O-O {[%clk 0:02:54.6]} 9. Bxg7 {[%clk 0:02:57.3]} 9... Kxg7 {[%clk 0:02:54.7]}
10. Nge2 {[%clk 0:02:58.2]} 10... Rb8 {[%clk 0:02:49.2]} 11. a4 {[%clk
0:02:57.7]} 11... a6 {[%clk 0:02:47.5]} 12. O-O {[%clk 0:02:57.5]} 12... d5
{[%clk 0:02:29.3]} 13. exd5 {[%clk 0:02:53.7]} 13... exd5 {[%clk 0:02:30.2]} 14.
d4 {[%clk 0:02:54.2]} 14... cxd4 {[%clk 0:02:19.5]} 15. Nxd4 {[%clk 0:02:53.8]}
15... Kg8 {[%clk 0:02:15.7]} 16. Rfe1 {[%clk 0:02:46.6]} 16... Nxd4 {[%clk
0:02:05.5]} 17. Qxd4 {[%clk 0:02:47.5]} 17... Be6 {[%clk 0:02:06.1]} 18. Rad1
{[%clk 0:02:26.6]} 18... Qa5 {[%clk 0:01:46.6]} 19. Qf6 {[%clk 0:02:19]} 19...
Nf5 {[%clk 0:01:26.8]} 20. Bxd5 {[%clk 0:02:08.1]} 20... Bxd5 {[%clk 0:01:18.2]}
21. Rxd5 {[%clk 0:02:07.7]} 21... Qb4 {[%clk 0:01:16.7]} 22. Rxf5 {[%clk
0:00:17.6]} 22... gxf5 {[%clk 0:01:09.6]} 23. Qg5+ {[%clk 0:00:13.1]} 23... Kh8
{[%clk 0:01:09.9]} 24. Qf6+ {[%clk 0:00:13.8]} 24... Kg8 {[%clk 0:01:10.7]} 25.
Qg5+ {[%clk 0:00:14.6]} 25... Kh8 {[%clk 0:01:11.5]} 26. Qf6+ {[%clk 0:00:15.3]}
26... Kg8 {[%clk 0:01:12.3]} 1/2-1/2

[Event "Early-Titled-Tuesday-Blitz-March-05-2024"]
[Site "Chess.com"]
[Date "2024.03.05"]
[Round "2"]
[White "LornerAcosta"]
[Black "diamonds13"]
[Result "1-0"]
[WhiteElo "2624"]
[BlackElo "2371"]
[TimeControl "180+1"]
[EndTime "8:16:47 PST"]
[Termination "LornerAcosta won by resignation"]

1. Nf3 {[%clk 0:03:00.9]} 1... c5 {[%clk 0:02:56]} 2. c4 {[%clk 0:02:59.5]} 2...
Nc6 {[%clk 0:02:54.2]} 3. e3 {[%clk 0:03:00.1]} 3... f5 {[%clk 0:02:53.3]} 4. b3
{[%clk 0:02:59.2]} 4... Nf6 {[%clk 0:02:52.6]} 5. Bb2 {[%clk 0:02:58.8]} 5... d6
{[%clk 0:02:52.5]} 6. a3 {[%clk 0:02:57.9]} 6... e5 {[%clk 0:02:52.2]} 7. d4
{[%clk 0:02:57.2]} 7... cxd4 {[%clk 0:02:51.5]} 8. exd4 {[%clk 0:02:57.4]} 8...
e4 {[%clk 0:02:51.6]} 9. Ng1 {[%clk 0:02:50.6]} 9... d5 {[%clk 0:02:51.3]} 10.
Ne2 {[%clk 0:02:49.7]} 10... Bd6 {[%clk 0:02:48.9]} 11. Nbc3 {[%clk 0:02:47.6]}
11... O-O {[%clk 0:02:48.6]} 12. g3 {[%clk 0:02:43.2]} 12... f4 {[%clk
0:02:47.6]} 13. gxf4 {[%clk 0:02:29.4]} 13... Bg4 {[%clk 0:02:45.4]} 14. Qd2
{[%clk 0:02:27.2]} 14... Bf3 {[%clk 0:02:44.7]} 15. Rg1 {[%clk 0:02:26.5]} 15...
Ne7 {[%clk 0:02:39.8]} 16. Ng3 {[%clk 0:02:19.7]} 16... Ng6 {[%clk 0:02:30.5]}
17. f5 {[%clk 0:02:06]} 17... Bf4 {[%clk 0:02:29]} 18. Qc2 {[%clk 0:02:04.3]}
18... Ne7 {[%clk 0:02:24.3]} 19. Be2 {[%clk 0:02:00.9]} 19... Rc8 {[%clk
0:02:22.9]} 20. Bxf3 {[%clk 0:01:58.7]} 20... exf3 {[%clk 0:02:22.5]} 21. c5
{[%clk 0:01:58.9]} 21... Nc6 {[%clk 0:02:18]} 22. Qd3 {[%clk 0:01:53.1]} 22...
Re8+ {[%clk 0:02:07.7]} 23. Kf1 {[%clk 0:01:52.5]} 23... Bxg3 {[%clk 0:02:06.1]}
24. Rxg3 {[%clk 0:01:48.7]} 24... Ne4 {[%clk 0:02:06.1]} 25. Nxe4 {[%clk
0:01:38.2]} 25... dxe4 {[%clk 0:02:05.5]} 26. Qc4+ {[%clk 0:01:38.3]} 26... Kh8
{[%clk 0:02:05.3]} 27. d5 {[%clk 0:01:38.9]} 27... Ne5 {[%clk 0:02:05.3]} 28.
Qxe4 {[%clk 0:01:36.2]} 28... Qf6 {[%clk 0:02:03.2]} 29. b4 {[%clk 0:01:32.7]}
29... b6 {[%clk 0:01:37.7]} 30. Re1 {[%clk 0:01:28.4]} 30... bxc5 {[%clk
0:01:11.5]} 31. Bxe5 {[%clk 0:01:27.6]} 31... Qa6+ {[%clk 0:01:11.3]} 32. Kg1
{[%clk 0:01:25.7]} 32... Re7 {[%clk 0:00:47]} 33. Bxg7+ {[%clk 0:01:08.1]} 33...
Rxg7 {[%clk 0:00:44.6]} 34. Qe8+ {[%clk 0:01:08.5]} 1-0

[Event "Early-Titled-Tuesday-Blitz-March-05-2024"]
[Site "Chess.com"]
[Date "2024.03.05"]
[Round "2"]
[White "NikitaShnadrygin"]
[Black "NewYearGirl"]
[Result "1-0"]
[WhiteElo "2609"]
[BlackElo "2359"]
[TimeControl "180+1"]
[EndTime "8:16:47 PST"]
[Termination "NikitaShnadrygin won by resignation"]

1. e4 {[%clk 0:02:57.6]} 1... c5 {[%clk 0:02:59.1]} 2. Nf3 {[%clk 0:02:57.5]}
2... d6 {[%clk 0:02:59]} 3. d4 {[%clk 0:02:57.5]} 3... cxd4 {[%clk 0:02:59]} 4.
Nxd4 {[%clk 0:02:58.4]} 4... Nf6 {[%clk 0:02:58.9]} 5. Nc3 {[%clk 0:02:58.7]}
5... g6 {[%clk 0:02:58]} 6. f3 {[%clk 0:02:57.5]} 6... Bg7 {[%clk 0:02:58.4]} 7.
Be3 {[%clk 0:02:50]} 7... O-O {[%clk 0:02:58.5]} 8. g4 {[%clk 0:02:50.3]} 8...
Be6 {[%clk 0:02:55.5]} 9. Nxe6 {[%clk 0:02:42.8]} 9... fxe6 {[%clk 0:02:56.4]}
10. Bc4 {[%clk 0:02:42.7]} 10... Qc8 {[%clk 0:02:50.4]} 11. Bb3 {[%clk
0:02:40.3]} 11... Nc6 {[%clk 0:02:47.5]} 12. Qe2 {[%clk 0:01:58.4]} 12... Na5
{[%clk 0:02:42.4]} 13. O-O {[%clk 0:01:03]} 13... Nxb3 {[%clk 0:02:38.5]} 14.
axb3 {[%clk 0:01:00.4]} 14... a6 {[%clk 0:02:37.8]} 15. Na4 {[%clk 0:00:58.3]}
15... Nd7 {[%clk 0:02:38.4]} 16. c4 {[%clk 0:00:57.8]} 16... Rb8 {[%clk
0:02:31.5]} 17. Rac1 {[%clk 0:00:56.9]} 17... Qd8 {[%clk 0:02:26.2]} 18. Kg2
{[%clk 0:00:51.4]} 18... b5 {[%clk 0:02:25.3]} 19. cxb5 {[%clk 0:00:50.4]} 19...
axb5 {[%clk 0:02:26.2]} 20. Nc3 {[%clk 0:00:50.8]} 20... Nc5 {[%clk 0:02:23.2]}
21. b4 {[%clk 0:00:44.8]} 21... Nb3 {[%clk 0:02:21]} 22. Rcd1 {[%clk 0:00:43.7]}
22... Qe8 {[%clk 0:02:19.1]} 23. Qc2 {[%clk 0:00:43.1]} 23... Nc5 {[%clk
0:02:01.7]} 24. bxc5 {[%clk 0:00:42.8]} 24... dxc5 {[%clk 0:02:02.6]} 25. Bxc5
{[%clk 0:00:41.9]} 25... b4 {[%clk 0:02:02.6]} 26. Ne2 {[%clk 0:00:42.1]} 26...
g5 {[%clk 0:01:58]} 27. Qc4 {[%clk 0:00:41.1]} 27... Rf6 {[%clk 0:01:57.9]} 28.
Bd4 {[%clk 0:00:40.6]} 28... Rh6 {[%clk 0:01:52.6]} 29. Bxg7 {[%clk 0:00:40.5]}
29... Kxg7 {[%clk 0:01:53.5]} 30. f4 {[%clk 0:00:39.8]} 30... Rh4 {[%clk
0:01:51.3]} 31. h3 {[%clk 0:00:38.7]} 31... h5 {[%clk 0:01:49.2]} 32. Qd4+
{[%clk 0:00:30.9]} 32... Kg8 {[%clk 0:01:45.4]} 33. Qe5 {[%clk 0:00:31.2]} 33...
Rb5 {[%clk 0:01:44.3]} 34. Rd8 {[%clk 0:00:27.1]} 34... Qxd8 {[%clk 0:01:43.2]}
35. Qxb5 {[%clk 0:00:27.1]} 35... Qd2 {[%clk 0:01:36.2]} 36. Qxg5+ {[%clk
0:00:27.1]} 36... Kf8 {[%clk 0:01:36.4]} 37. Qxh4 {[%clk 0:00:27.8]} 37... Qxe2+
{[%clk 0:01:37]} 38. Qf2 {[%clk 0:00:28.5]} 38... Qxe4+ {[%clk 0:01:36.6]} 39.
Qf3 {[%clk 0:00:29.3]} 1-0

[Event "Early-Titled-Tuesday-Blitz-March-05-2024"]
[Site "Chess.com"]
[Date "2024.03.05"]
[Round "2"]
[White "tetrix83"]
[Black "Genghis_K"]
[Result "0-1"]
[WhiteElo "2606"]
[BlackElo "2949"]
[TimeControl "180+1"]
[EndTime "8:16:48 PST"]
[Termination "Genghis_K won by resignation"]

1. e4 {[%clk 0:02:57.8]} 1... c5 {[%clk 0:03:00]} 2. Nf3 {[%clk 0:02:58]} 2...
d6 {[%clk 0:03:00.7]} 3. Bb5+ {[%clk 0:02:58.4]} 3... Bd7 {[%clk 0:03:00.6]} 4.
Bxd7+ {[%clk 0:02:57.5]} 4... Nxd7 {[%clk 0:03:01.5]} 5. O-O {[%clk 0:02:57]}
5... e6 {[%clk 0:03:00.5]} 6. b3 {[%clk 0:02:53.5]} 6... Be7 {[%clk 0:03:00.8]}
7. Bb2 {[%clk 0:02:53.9]} 7... Bf6 {[%clk 0:03:01]} 8. Nc3 {[%clk 0:02:52.7]}
8... Ne7 {[%clk 0:02:57.4]} 9. d4 {[%clk 0:02:52.6]} 9... cxd4 {[%clk
0:02:27.4]} 10. Nxd4 {[%clk 0:02:25.1]} 10... O-O {[%clk 0:02:19.2]} 11. Ndb5
{[%clk 0:02:19.6]} 11... d5 {[%clk 0:02:17.5]} 12. exd5 {[%clk 0:02:19.5]} 12...
Nxd5 {[%clk 0:02:16.9]} 13. Rb1 {[%clk 0:02:04.3]} 13... Nxc3 {[%clk 0:01:54.9]}
14. Bxc3 {[%clk 0:01:54.4]} 14... a6 {[%clk 0:01:48.4]} 15. Bxf6 {[%clk
0:01:52.6]} 15... Nxf6 {[%clk 0:01:48.5]} 16. Nd4 {[%clk 0:01:29.7]} 16... Qa5
{[%clk 0:01:42.9]} 17. Qf3 {[%clk 0:01:25.1]} 17... Rad8 {[%clk 0:01:34]} 18.
Rbd1 {[%clk 0:01:19.7]} 18... Rd7 {[%clk 0:01:21.4]} 19. a4 {[%clk 0:00:23.3]}
19... Rfd8 {[%clk 0:01:19.5]} 20. c3 {[%clk 0:00:19.6]} 20... e5 {[%clk
0:00:58.3]} 21. Ne2 {[%clk 0:00:19.7]} 21... Rxd1 {[%clk 0:00:57.1]} 0-1

[Event "Early-Titled-Tuesday-Blitz-March-05-2024"]
[Site "Chess.com"]
[Date "2024.03.05"]
[Round "2"]
[White "ChessBrainiacOnTwitch"]
[Black "iJueles"]
[Result "1-0"]
[WhiteElo "2839"]
[BlackElo "2477"]
[TimeControl "180+1"]
[EndTime "8:16:49 PST"]
[Termination "ChessBrainiacOnTwitch won by resignation"]

1. Nf3 {[%clk 0:03:00.9]} 1... d5 {[%clk 0:02:58]} 2. c4 {[%clk 0:03:00.3]} 2...
e6 {[%clk 0:02:51.9]} 3. g3 {[%clk 0:02:59.8]} 3... Nf6 {[%clk 0:02:52]} 4. Bg2
{[%clk 0:03:00.3]} 4... Be7 {[%clk 0:02:52.5]} 5. O-O {[%clk 0:03:00.9]} 5...
O-O {[%clk 0:02:52.9]} 6. b3 {[%clk 0:02:56.1]} 6... b6 {[%clk 0:02:50.6]} 7.
Bb2 {[%clk 0:02:55.7]} 7... Bb7 {[%clk 0:02:50.8]} 8. d4 {[%clk 0:02:54.9]} 8...
c6 {[%clk 0:02:43.1]} 9. Nc3 {[%clk 0:02:54.1]} 9... Nbd7 {[%clk 0:02:43.6]} 10.
Rc1 {[%clk 0:02:53.9]} 10... Re8 {[%clk 0:02:39.9]} 11. Nd2 {[%clk 0:02:53.8]}
11... Ba6 {[%clk 0:02:39]} 12. e4 {[%clk 0:02:53.6]} 12... dxe4 {[%clk
0:02:29.5]} 13. Ndxe4 {[%clk 0:02:54.5]} 13... Rc8 {[%clk 0:02:28.4]} 14. Ng5
{[%clk 0:02:49.7]} 14... h6 {[%clk 0:02:28.1]} 15. Nf3 {[%clk 0:02:47.3]} 15...
c5 {[%clk 0:02:27.2]} 16. d5 {[%clk 0:02:42.4]} 16... exd5 {[%clk 0:02:25.5]}
17. Nxd5 {[%clk 0:02:43.3]} 17... Nxd5 {[%clk 0:02:25]} 18. Qxd5 {[%clk
0:02:43.8]} 18... Nf6 {[%clk 0:02:23.9]} 19. Qf5 {[%clk 0:02:41.9]} 19... Rc6
{[%clk 0:02:20.9]} 20. Ne5 {[%clk 0:02:40.2]} 20... Re6 {[%clk 0:02:17.5]} 21.
Rcd1 {[%clk 0:02:33.4]} 21... Rd6 {[%clk 0:02:09.4]} 22. Rde1 {[%clk 0:02:18.1]}
22... Bc8 {[%clk 0:02:06.2]} 23. Qf3 {[%clk 0:02:12.5]} 23... Bf8 {[%clk
0:01:12.8]} 24. Nc6 {[%clk 0:02:00.5]} 24... Qd7 {[%clk 0:01:10.3]} 25. Rxe8
{[%clk 0:01:51.8]} 25... Nxe8 {[%clk 0:00:57]} 26. Ne5 {[%clk 0:01:51.3]} 26...
Qc7 {[%clk 0:00:54]} 27. Re1 {[%clk 0:01:48.5]} 27... Be6 {[%clk 0:00:50.1]} 28.
Nd3 {[%clk 0:01:44.1]} 28... Qd8 {[%clk 0:00:45.3]} 29. Nf4 {[%clk 0:01:44.2]}
29... Bd7 {[%clk 0:00:36.7]} 30. Nd5 {[%clk 0:01:44.3]} 30... Bc6 {[%clk
0:00:34]} 31. Be5 {[%clk 0:01:43.3]} 31... Re6 {[%clk 0:00:31.7]} 32. Bh3 {[%clk
0:01:39]} 32... Bd6 {[%clk 0:00:18.3]} 33. Bxe6 {[%clk 0:01:31.3]} 33... fxe6
{[%clk 0:00:18.2]} 34. Bxd6 {[%clk 0:01:31.1]} 34... Qxd6 {[%clk 0:00:12.5]} 35.
Ne7+ {[%clk 0:01:30.6]} 35... Qxe7 {[%clk 0:00:12.5]} 36. Qxc6 {[%clk
0:01:31.5]} 1-0

[Event "Early-Titled-Tuesday-Blitz-March-05-2024"]
[Site "Chess.com"]
[Date "2024.03.05"]
[Round "2"]
[White "bazar-wokzal"]
[Black "VladimirKramnik"]
[Result "0-1"]
[WhiteElo "2609"]
[BlackElo "2963"]
[TimeControl "180+1"]
[EndTime "8:16:52 PST"]
[Termination "VladimirKramnik won by resignation"]

1. e4 {[%clk 0:03:00.9]} 1... c5 {[%clk 0:02:59.4]} 2. c3 {[%clk 0:03:00.8]}
2... d5 {[%clk 0:02:58.4]} 3. exd5 {[%clk 0:03:00.8]} 3... Qxd5 {[%clk
0:02:58.5]} 4. d4 {[%clk 0:03:01.3]} 4... Nf6 {[%clk 0:02:58.7]} 5. Nf3 {[%clk
0:03:01.6]} 5... Nc6 {[%clk 0:02:58.9]} 6. Be3 {[%clk 0:03:00.4]} 6... Bg4
{[%clk 0:02:57.2]} 7. dxc5 {[%clk 0:02:49.3]} 7... Qxd1+ {[%clk 0:02:54]} 8.
Kxd1 {[%clk 0:02:49.2]} 8... Nd5 {[%clk 0:02:50.9]} 9. Bb5 {[%clk 0:02:45.1]}
9... O-O-O {[%clk 0:02:44.9]} 10. Nd2 {[%clk 0:02:09.7]} 10... e5 {[%clk
0:02:37.7]} 11. Bxc6 {[%clk 0:02:09]} 11... bxc6 {[%clk 0:02:35.7]} 12. Kc2
{[%clk 0:02:01.7]} 12... Bf5+ {[%clk 0:02:30.5]} 13. Kb3 {[%clk 0:01:57.5]}
13... Nxe3 {[%clk 0:02:23.1]} 14. fxe3 {[%clk 0:01:56.8]} 14... Bxc5 {[%clk
0:02:22.3]} 15. Rae1 {[%clk 0:01:45.9]} 15... f6 {[%clk 0:01:56.7]} 16. Ka4
{[%clk 0:01:44]} 16... Rd3 {[%clk 0:01:49.9]} 17. e4 {[%clk 0:01:40.3]} 17...
Be6 {[%clk 0:01:49.1]} 18. Nb3 {[%clk 0:01:34]} 18... Be7 {[%clk 0:01:43.3]} 19.
Rd1 {[%clk 0:01:26.9]} 19... Rhd8 {[%clk 0:01:42.2]} 20. Rxd3 {[%clk 0:01:26.8]}
20... Rxd3 {[%clk 0:01:42.5]} 21. Nc1 {[%clk 0:01:18.1]} 21... Rd6 {[%clk
0:01:35.4]} 22. b4 {[%clk 0:01:09.6]} 22... c5 {[%clk 0:01:32.4]} 23. b5 {[%clk
0:01:03.3]} 23... c4 {[%clk 0:01:32.2]} 24. Re1 {[%clk 0:00:53.6]} 24... a6
{[%clk 0:01:27.3]} 25. bxa6 {[%clk 0:00:41.9]} 25... Rxa6+ {[%clk 0:01:23.2]}
26. Kb5 {[%clk 0:00:42.3]} 26... Kb7 {[%clk 0:01:14.6]} 27. Re2 {[%clk
0:00:29.9]} 27... Rb6+ {[%clk 0:01:14.2]} 28. Ka5 {[%clk 0:00:26.6]} 28... Bd7
{[%clk 0:01:13]} 0-1

[Event "Early-Titled-Tuesday-Blitz-March-05-2024"]
[Site "Chess.com"]
[Date "2024.03.05"]
[Round "2"]
[White "twofoxniel"]
[Black "Iball95"]
[Result "0-1"]
[WhiteElo "2588"]
[BlackElo "2904"]
[TimeControl "180+1"]
[EndTime "8:16:57 PST"]
[Termination "Iball95 won by resignation"]

1. e4 {[%clk 0:03:00.9]} 1... c5 {[%clk 0:02:59.6]} 2. c3 {[%clk 0:03:00.3]}
2... e6 {[%clk 0:02:59.4]} 3. d4 {[%clk 0:03:00.4]} 3... d5 {[%clk 0:03:00]} 4.
exd5 {[%clk 0:03:00.6]} 4... exd5 {[%clk 0:03:00.9]} 5. Nf3 {[%clk 0:03:01.1]}
5... Nf6 {[%clk 0:03:01.5]} 6. Bb5+ {[%clk 0:03:00.9]} 6... Nc6 {[%clk
0:03:01.8]} 7. O-O {[%clk 0:03:00.7]} 7... Be7 {[%clk 0:03:02.3]} 8. dxc5 {[%clk
0:03:00.4]} 8... Bxc5 {[%clk 0:03:03.2]} 9. Nbd2 {[%clk 0:03:00.4]} 9... O-O
{[%clk 0:03:03]} 10. Nb3 {[%clk 0:03:01]} 10... Bb6 {[%clk 0:03:03.6]} 11. Bg5
{[%clk 0:03:00.2]} 11... Be6 {[%clk 0:03:03.8]} 12. h3 {[%clk 0:02:59]} 12... h6
{[%clk 0:03:03.3]} 13. Bh4 {[%clk 0:02:58.9]} 13... g5 {[%clk 0:02:52]} 14. Bg3
{[%clk 0:02:26.8]} 14... Ne4 {[%clk 0:02:51.6]} 15. Bh2 {[%clk 0:02:22]} 15...
Qf6 {[%clk 0:02:50.6]} 16. Nfd4 {[%clk 0:01:50.6]} 16... Nxd4 {[%clk 0:02:41.5]}
17. cxd4 {[%clk 0:01:49.2]} 17... Rac8 {[%clk 0:02:36.5]} 18. f4 {[%clk
0:01:45.9]} 18... Qg6 {[%clk 0:02:27.6]} 19. fxg5 {[%clk 0:01:27.4]} 19... hxg5
{[%clk 0:02:28.5]} 20. Bd3 {[%clk 0:01:24.7]} 20... g4 {[%clk 0:02:14.8]} 21.
hxg4 {[%clk 0:01:21]} 21... Bxg4 {[%clk 0:02:14.4]} 22. Be2 {[%clk 0:00:53.7]}
22... Bxe2 {[%clk 0:01:59.5]} 23. Qxe2 {[%clk 0:00:53.8]} 23... Rfe8 {[%clk
0:01:57.7]} 24. Rf4 {[%clk 0:00:29.3]} 24... Ng3 {[%clk 0:01:43]} 25. Qf3 {[%clk
0:00:27.3]} 25... Ne2+ {[%clk 0:01:41.8]} 26. Kh1 {[%clk 0:00:27.4]} 26... Nxf4
{[%clk 0:01:41.8]} 27. Qxf4 {[%clk 0:00:28]} 27... Re4 {[%clk 0:01:40.7]} 28.
Qf3 {[%clk 0:00:27]} 28... Rce8 {[%clk 0:01:38.5]} 29. Rf1 {[%clk 0:00:24.4]}
29... Re1 {[%clk 0:01:38.1]} 30. Rxe1 {[%clk 0:00:20.3]} 30... Rxe1+ {[%clk
0:01:39]} 31. Bg1 {[%clk 0:00:20.4]} 31... Qh6+ {[%clk 0:01:33.4]} 32. Qh3
{[%clk 0:00:21.1]} 32... Qxh3+ {[%clk 0:01:33.7]} 33. gxh3 {[%clk 0:00:22]}
33... Re2 {[%clk 0:01:34.1]} 0-1

[Event "Early-Titled-Tuesday-Blitz-March-05-2024"]
[Site "Chess.com"]
[Date "2024.03.05"]
[Round "2"]
[White "xakevicius91"]
[Black "KVAIDAN"]
[Result "1-0"]
[WhiteElo "2555"]
[BlackElo "2334"]
[TimeControl "180+1"]
[EndTime "8:17:00 PST"]
[Termination "xakevicius91 won by resignation"]

1. e4 {[%clk 0:03:00.9]} 1... e5 {[%clk 0:03:00.2]} 2. Nf3 {[%clk 0:03:00.2]}
2... d5 {[%clk 0:03:00.6]} 3. exd5 {[%clk 0:02:59.2]} 3... e4 {[%clk 0:02:59.6]}
4. Qe2 {[%clk 0:02:59.6]} 4... Nf6 {[%clk 0:02:59]} 5. Nc3 {[%clk 0:02:57.6]}
5... Be7 {[%clk 0:02:59.1]} 6. Nxe4 {[%clk 0:02:57.8]} 6... Nxd5 {[%clk
0:02:56.8]} 7. Qd1 {[%clk 0:02:57.3]} 7... O-O {[%clk 0:02:56.4]} 8. Be2 {[%clk
0:02:57.4]} 8... Re8 {[%clk 0:02:48]} 9. O-O {[%clk 0:02:57]} 9... Nc6 {[%clk
0:02:47.5]} 10. Nc3 {[%clk 0:02:57.5]} 10... Bg4 {[%clk 0:02:43.2]} 11. d4
{[%clk 0:02:56]} 11... Bf6 {[%clk 0:02:33]} 12. Nxd5 {[%clk 0:02:56.1]} 12...
Qxd5 {[%clk 0:02:29.7]} 13. c3 {[%clk 0:02:56.5]} 13... Qh5 {[%clk 0:02:21.5]}
14. Be3 {[%clk 0:02:54]} 14... Rad8 {[%clk 0:02:19.7]} 15. h3 {[%clk 0:02:54]}
15... Bc8 {[%clk 0:02:09.3]} 16. Ne5 {[%clk 0:02:49.2]} 16... Qf5 {[%clk
0:02:02.8]} 17. Nxc6 {[%clk 0:02:46.8]} 17... bxc6 {[%clk 0:01:57.8]} 18. Bg4
{[%clk 0:02:46.5]} 18... Qd5 {[%clk 0:01:57.7]} 19. Bxc8 {[%clk 0:02:46.4]}
19... Rxc8 {[%clk 0:01:57.8]} 20. Qb3 {[%clk 0:02:46.1]} 20... Qf5 {[%clk
0:01:55.6]} 21. Qc4 {[%clk 0:02:41.4]} 21... Re6 {[%clk 0:01:52.2]} 22. b4
{[%clk 0:02:40.8]} 22... a5 {[%clk 0:01:20.6]} 23. a3 {[%clk 0:02:39.1]} 23...
Bh4 {[%clk 0:01:02.4]} 24. Rae1 {[%clk 0:02:35]} 24... Rg6 {[%clk 0:00:55.6]}
25. Kh1 {[%clk 0:02:25.3]} 25... axb4 {[%clk 0:00:52.3]} 26. axb4 {[%clk
0:02:25.1]} 26... h6 {[%clk 0:00:48]} 27. Kh2 {[%clk 0:02:15.6]} 27... Qe4
{[%clk 0:00:39.5]} 28. g3 {[%clk 0:02:12]} 28... Qf3 {[%clk 0:00:37.4]} 29. Bf4
{[%clk 0:02:07.9]} 29... Rf6 {[%clk 0:00:28.1]} 30. Qe2 {[%clk 0:02:04.1]} 30...
Qd5 {[%clk 0:00:21.1]} 31. Qe4 {[%clk 0:01:58.7]} 31... Qc4 {[%clk 0:00:17.6]}
32. gxh4 {[%clk 0:01:57.7]} 32... Qxc3 {[%clk 0:00:18]} 33. Bg3 {[%clk
0:01:56.5]} 33... Qxb4 {[%clk 0:00:17.5]} 34. d5 {[%clk 0:01:55.5]} 34... Qc5
{[%clk 0:00:16.6]} 35. dxc6 {[%clk 0:01:54.8]} 35... Rxc6 {[%clk 0:00:16.6]} 36.
Qe5 {[%clk 0:01:53.5]} 36... Qc2 {[%clk 0:00:15.9]} 37. Re2 {[%clk 0:01:53]}
37... Qg6 {[%clk 0:00:16.3]} 38. Rfe1 {[%clk 0:01:53.2]} 38... Re6 {[%clk
0:00:16.4]} 39. Qd5 {[%clk 0:01:51]} 39... Rxe2 {[%clk 0:00:15.9]} 40. Rxe2
{[%clk 0:01:51.9]} 40... c5 {[%clk 0:00:16.5]} 41. Qd7 {[%clk 0:01:50.2]} 41...
Qa6 {[%clk 0:00:15.1]} 42. Re8+ {[%clk 0:01:49.8]} 42... Rxe8 {[%clk 0:00:15.1]}
43. Qxe8+ {[%clk 0:01:50.7]} 43... Kh7 {[%clk 0:00:15.7]} 44. Qe4+ {[%clk
0:01:51.2]} 44... g6 {[%clk 0:00:15]} 45. h5 {[%clk 0:01:51.5]} 45... Qc6 {[%clk
0:00:14.7]} 46. Qxc6 {[%clk 0:01:49.8]} 1-0